fUSD/lending_fUSD_20241018
["ID","MTS","AMOUNT","RATE_DAILY","PERIOD"]
[340446522,1729260632322,-150.0,0.00010855,2]
[340446523,1729260632331,-150.0,0.00010856,2]
[340446524,1729260632341,-150.0,0.00010857,2]
[340446525,1729260632350,-150.0,0.00010858,2]
[340446526,1729260632359,-150.0,0.00010861,2]
[340446527,1729260632368,-150.0,0.00010862,2]
[340446528,1729260632378,-150.0,0.00010863,2]
[340446529,1729260632387,-150.0,0.0001087,2]
[340446530,1729260632397,-150.0,0.0001087,2]
[340446531,1729260632406,-150.0,0.0001087,2]
[340446532,1729260632416,-150.0,0.00010871,2]
[340446533,1729260632425,-150.0,0.00010878,2]
[340446534,1729260632435,-150.0,0.0001088,2]
[340446535,1729260632444,-150.0,0.00010883,2]
[340446536,1729260632454,-150.0,0.00010887,2]
[340446537,1729260632463,-150.0,0.00010889,2]
[340446538,1729260632473,-308.39,0.0001089,2]
[340446539,1729260632483,-150.0,0.0001089,2]
[340446540,1729260632493,-150.0,0.0001089,2]
[340446541,1729260632502,-150.0,0.00010895,2]
[340446542,1729260632512,-9554.13904371,0.00010899,2]
[340446543,1729260632524,-2693.34,0.00010899,2]
[340446544,1729260632542,-592.80534594,0.00010899,2]
[340446545,1729260632554,-1432.37418234,0.00010899,2]
[340446546,1729260632568,-4243.61802801,0.00010899,2]
[340446547,1729260632577,-1003.5463,0.00010899,2]
[340446548,1729260632587,-43982.5664,0.000109,2]
[340446549,1729260632596,-675.2984,0.000109,2]
[340446550,1729260632607,-485.651,0.000109,2]
[340446551,1729260632616,-179.81498284,0.000109,2]
[340446552,1729260632626,-9785.0642,0.000109,2]
[340446553,1729260632635,-1922.15012623,0.000109,2]
[340446554,1729260632645,-15625.9268,0.000109,2]
[340446555,1729260632654,-150.0,0.00010903,2]
[340446556,1729260632664,-150.0,0.00010907,2]
[340446557,1729260632674,-150.0,0.00010911,2]
[340446558,1729260632683,-150.0,0.00010913,2]
[340446559,1729260632692,-150.0,0.00010919,2]
[340446560,1729260632702,-150.0,0.00010919,2]
[340446561,1729260632712,-150.0,0.00010927,2]
[340446562,1729260632722,-150.0,0.00010929,2]
[340446563,1729260632731,-150.0,0.00010934,2]
[340446564,1729260632741,-150.0,0.00010939,2]
[340446565,1729260632751,-150.0,0.00010939,2]
[340446566,1729260632761,-150.0,0.00010941,2]
[340446567,1729260632771,-150.0,0.00010949,2]
[340446568,1729260632785,-150.0,0.00010952,2]
[340446569,1729260632798,-150.0,0.00010953,2]
[340446570,1729260632807,-150.0,0.00010957,2]
[340446571,1729260632818,-150.0,0.00010958,2]
[340446572,1729260632827,-284.51,0.00010959,2]
[340446573,1729260632838,-155.26,0.00010959,2]
[340446574,1729260632848,-1117.32,0.00010959,2]
[340446575,1729260632859,-159.84,0.00010959,2]
[340446576,1729260632869,-161.43289392,0.00010973,2]
[340446577,1729260632878,-500.0,0.00010973,2]
[340446578,1729260632888,-205899.52507389,0.00011,2]
[340446579,1729260632901,-877.19624056,0.00011,2]
[340446580,1729260632912,-9899.06844672,0.00011,2]
[340446581,1729260632924,-500.0,0.00011,2]
[340446582,1729260632952,-263206.68522333,0.00011,2]
[340446585,1729260637582,-9390.14585654,0.00011,2]
[340446586,1729260637599,-1008.01357761,0.00011,2]
[340446587,1729260637665,-40420.35467897,0.00011,2]
[340446588,1729260637739,-94218.77931344,0.00011,2]
[340446589,1729260637752,-13974.06516712,0.00011,2]
[340446590,1729260637946,-1200.0,0.00011,2]
[340446595,1729260639453,-6695.4642,0.00011,2]
[340446596,1729260639466,-1008.62021426,0.00011,2]
[340446597,1729260639480,-9225.28756693,0.00011,2]
[340446598,1729260639490,-969.11303307,0.00011,2]
[340446599,1729260639502,-1969.67555678,0.00011,2]
[340446600,1729260639514,-526.49000001,0.00011,2]
[340446601,1729260639525,-5478.04506006,0.00011,2]
[340446602,1729260639541,-2899.23999163,0.00011,2]
[340446603,1729260639558,-34148.01413568,0.00011,2]
[340446604,1729260639571,-671.21727097,0.00011,2]
[340446605,1729260639583,-556.6841012,0.00011,2]
[340446606,1729260639627,-510.9874,0.00011,2]
[340446607,1729260639702,-1303.136596,0.00011,2]
[340446608,1729260639714,-934.5,0.00011,2]
[340446609,1729260639781,-7700.0,0.00011,2]
[340446617,1729260642583,-1663.435,0.000109,2]
[340446618,1729260642593,-4213.74783944,0.00011,2]
[340446619,1729260642606,-34223.97206823,0.00011,2]
[340446620,1729260642617,-1427.3093171,0.00011,2]
[340446621,1729260642663,-2645.6,0.00011,2]
[340446622,1729260642675,-33644.51898478,0.00011,2]
[340446623,1729260642734,-19837.87641233,0.00011,2]
[340446624,1729260642746,-502279.45399222,0.00011,2]
[340446625,1729260642756,-774539.54600709,0.00011,2]
[340446626,1729260642813,-7286.13343212,0.00011,2]
[340446627,1729260642825,-7404.30066809,0.00011,2]
[340446628,1729260642838,-14119.97498503,0.00011,2]
[340446629,1729260642851,-507.1881138,0.00011,2]
[340446633,1729260645865,-346492.68525804,0.00011,2]
[340446634,1729260645877,-682.61331625,0.00011,2]
[340446635,1729260645889,-70940.89058399,0.00011,2]
[340446640,1729260645995,-3400.69432305,0.00011,2]
[340446924,1729260665229,800.0,0.00026986,120]
[340446925,1729260670793,300.0,0.00013699,120]
[340446926,1729260670988,300.0,0.00013799,120]
[340446927,1729260671156,300.0,0.00013899,120]
[340446928,1729260671307,300.0,0.00015285,120]
[340446929,1729260671494,300.0,0.00018285,120]
[340446930,1729260671651,300.0,0.00013699,120]
[340446931,1729260671820,300.0,0.00013799,120]
[340446932,1729260671989,300.0,0.00013899,120]
[340446933,1729260672146,300.0,0.00015285,120]
[340446934,1729260672359,300.0,0.00018285,120]
[340446935,1729260672474,300.0,0.00013699,120]
[340446936,1729260672638,300.0,0.00013799,120]
[340446937,1729260672802,300.0,0.00013899,120]
[340446938,1729260672991,300.0,0.00015285,120]
[340446939,1729260673248,300.0,0.00018285,120]
[340446940,1729260673383,300.0,0.00013699,120]
[340446941,1729260673763,300.0,0.00013799,120]
[340446942,1729260673930,300.0,0.00013899,120]
[340446943,1729260674090,300.0,0.00015285,120]
[340446944,1729260674249,300.0,0.00018285,120]
[340446945,1729260674563,300.0,0.00013699,120]
[340446946,1729260674787,300.0,0.00013799,120]
[340446947,1729260674954,300.0,0.00013899,120]
[340446948,1729260675117,300.0,0.00015285,120]
[340446949,1729260675273,300.0,0.00018285,120]
[340446950,1729260675586,300.0,0.00013699,120]
[340446951,1729260675661,300.0,0.00013799,120]
[340446952,1729260675874,374.92636038,0.00013899,120]
[340446954,1729260713108,3315.4644,0.00010313,2]
[340446955,1729260728980,1000.0,0.0001,2]
[340446956,1729260730710,300.0,0.00013699,120]
[340446957,1729260730887,300.0,0.00013799,120]
[340446958,1729260731034,300.0,0.00013899,120]
[340446959,1729260731208,300.0,0.0001534,120]
[340446960,1729260731592,300.0,0.0001834,120]
[340446961,1729260731761,300.0,0.00013699,120]
[340446962,1729260731959,300.0,0.00013799,120]
[340446963,1729260732126,300.0,0.00013899,120]
[340446964,1729260732314,300.0,0.0001534,120]
[340446965,1729260732479,300.0,0.0001834,120]
[340446966,1729260732679,300.0,0.00013699,120]
[340446967,1729260732841,300.0,0.00013799,120]
[340446968,1729260733327,300.0,0.00013899,120]
[340446969,1729260733586,300.0,0.0001534,120]
[340446970,1729260733931,300.0,0.0001834,120]
[340446971,1729260734142,300.0,0.00013699,120]
[340446972,1729260734368,300.0,0.00013799,120]
[340446973,1729260734548,300.0,0.00013899,120]
[340446974,1729260734703,300.0,0.0001534,120]
[340446975,1729260734876,300.0,0.0001834,120]
[340446976,1729260735038,300.0,0.00013699,120]
[340446977,1729260735198,1000.0,0.0001,2]
[340446978,1729260735244,300.0,0.00013799,120]
[340446979,1729260735396,300.0,0.00013899,120]
[340446980,1729260735559,300.0,0.0001534,120]
[340446981,1729260735739,300.0,0.0001834,120]
[340446982,1729260735910,300.0,0.00013699,120]
[340446983,1729260736084,300.0,0.00013799,120]
[340446984,1729260736281,300.0,0.00013899,120]
[340446985,1729260736462,300.0,0.0001534,120]
[340446986,1729260736509,1000.0,0.0001,2]
[340446987,1729260736663,300.0,0.0001834,120]
[340446988,1729260744779,1040.9,0.0001,2]
[340446989,1729260782558,150.5,0.0001315,120]
[340446990,1729260783158,150.5,0.0001314,120]
[340446991,1729260783619,150.5,0.0001313,120]
[340446992,1729260784111,150.5,0.0001379,120]
[340446993,1729260784622,199.78,0.0001378,120]
[340446994,1729260823016,150.0,0.00027,60]
[340446995,1729260875723,200.0,0.00027,60]
[340446998,1729260965213,800.0,0.00026986,120]
[340446999,1729261025072,800.0,0.00026986,120]
[340447000,1729261084778,800.0,0.00026986,120]
[340447001,1729261099396,169.0,0.00027,60]
[340447002,1729261122200,150.0,0.00027,60]
[340447003,1729261179016,-150.0,0.00010562,2]
[340447004,1729261179045,-150.11649821,0.00010873,2]
[340447005,1729261179067,-161.91853726,0.00010873,2]
[340447006,1729261179090,-173.07981899,0.00010899,2]
[340447007,1729261179118,-150.0,0.00010899,2]
[340447008,1729261179141,-3553.6626,0.000109,2]
[340447009,1729261179165,-262.4399,0.000109,2]
[340447010,1729261179189,-66757.346,0.000109,2]
[340447011,1729261179213,-1270.541,0.000109,2]
[340447012,1729261179236,-3784.0869,0.000109,2]
[340447013,1729261179261,-2007.1442,0.000109,2]
[340447014,1729261179283,-11579.66454554,0.000109,2]
[340447015,1729261188596,505.48,9.63e-05,2]
[340447016,1729261212764,800.0,0.00026986,120]
[340447018,1729261264064,167.79,0.00026986,120]
[340447019,1729261422663,173.120584,0.00027,60]
[340447020,1729261442362,933.338641,0.0001,2]
[340447021,1729261475676,550.0,0.0001,2]
[340447022,1729261526894,891.84895943,0.00023,120]
[340447023,1729261529910,49317.45610859,0.000101,2]
[340447024,1729261536623,22000.0,9e-05,2]
[340447025,1729261555085,20117.63406567,6.94e-05,2]
[340447026,1729261625134,-1088.7012,0.00010511,2]
[340447027,1729261625156,-150.0,0.00010511,2]
[340447028,1729261625180,-150.0,0.00010748,2]
[340447029,1729261625201,-251.1146,0.000108,2]
[340447030,1729261625223,-711.40943026,0.000108,2]
[340447031,1729261701917,460.39791594,0.00027,60]
[340447032,1729261719699,388.77045354,0.0002509,120]
[340447033,1729261721474,150.0,0.00027,60]
[340447034,1729261725305,467.35105188,0.000145,120]
[340447035,1729261725612,252.5763518,0.00027,120]
[340447041,1729261759826,516.63,9.32e-05,2]
[340447067,1729261831774,-365.06759219,0.00010582,2]
[340447069,1729261831787,-674.10552,0.00010582,2]
[340447075,1729261831866,-990.80056769,0.00010582,2]
[340447076,1729261831876,-326.5512815,0.00010727,2]
[340447077,1729261831886,-839.3056,0.0001078,2]
[340447078,1729261831896,-150.0,0.00010827,2]
[340447079,1729261831906,-300.0,0.00010879,2]
[340447080,1729261831918,-370.97489,0.0001088,2]
[340447081,1729261831931,-675.83,0.0001088,2]
[340447082,1729261831943,-1125.75507013,0.0001088,2]
[340447083,1729261831955,-791.24822385,0.0001088,2]
[340447084,1729261831967,-431.36387479,0.0001088,2]
[340447085,1729261831979,-441.93854479,0.0001088,2]
[340447086,1729261832030,-494.60842309,0.0001088,2]
[340447087,1729261832042,-1151.55012815,0.0001088,2]
[340447088,1729261832054,-1007.07587274,0.0001088,2]
[340447089,1729261832065,-471.9509302,0.0001088,2]
[340447109,1729261837869,-7101.19745983,0.0001088,2]
[340447113,1729261837955,-1070.70831661,0.0001088,2]
[340447114,1729261837972,-3233.48052235,0.0001088,2]
[340447115,1729261837984,-1007.08593606,0.0001088,2]
[340447116,1729261838058,-1706.22595138,0.0001088,2]
[340447117,1729261838070,-452.60925402,0.0001088,2]
[340447118,1729261838361,-5578.2688329,0.0001088,2]
[340447119,1729261838371,-150.0,0.00010899,2]
[340447120,1729261838380,-42436.89719842,0.000109,2]
[340447121,1729261838392,-45983.43825604,0.000109,2]
[340447122,1729261838401,-10232.7291,0.000109,2]
[340447123,1729261838414,-1000.0,0.000109,2]
[340447124,1729261838424,-173.55472767,0.000109,2]
[340447125,1729261838434,-170.49,0.00010959,2]
[340447126,1729261838444,-4025.81275055,0.00010973,2]
[340447127,1729261838455,-159.96993514,0.00010973,2]
[340447128,1729261838464,-500.0,0.00010973,2]
[340447129,1729261838474,-500.0,0.00010973,2]
[340447130,1729261838484,-500.66472637,0.00010973,2]
[340447131,1729261838494,-31869.9163723,0.00011,2]
[340447132,1729261838506,-6155.10305288,0.00011,2]
[340447134,1729261839809,-324.82004538,0.00011,2]
[340447135,1729261839821,-969.43043642,0.00011,2]
[340447136,1729261839833,-611.8198518,0.00011,2]
[340447137,1729261839844,-7201.70000002,0.00011,2]
[340447138,1729261839856,-2154.95,0.00011,2]
[340447139,1729261839868,-647.797892,0.00011,2]
[340447140,1729261839924,-3404.39519999,0.00011,2]
[340447141,1729261840017,-13639.56415,0.00011,2]
[340447142,1729261840030,-1470.0,0.00011,2]
[340447143,1729261840042,-406.7955218,0.00011,2]
[340447163,1729261842983,-2136629.56254709,0.00011,2]
[340447164,1729261842994,-397.8544895,0.00011,2]
[340447165,1729261843006,-11227.40183633,0.00011,2]
[340447166,1729261843289,-1928.37655257,0.00011,2]
[340447167,1729261843301,-625.78383673,0.00011,2]
[340447168,1729261843312,-9792.47407275,0.00011,2]
[340447169,1729261843324,-5722.24100985,0.00011,2]
[340447170,1729261843335,-2865.81931308,0.00011,2]
[340447171,1729261843346,-28546.6046542,0.00011,2]
[340447172,1729261843358,-13568.50261232,0.00011,2]
[340447186,1729261845807,-9347.75051587,0.00011,2]
[340447187,1729261845818,-339.50098222,0.00011,2]
[340447188,1729261845897,-416.52325546,0.00011,2]
[340447189,1729261845910,-820.8120622,0.00011,2]
[340447190,1729261845921,-92407.59464401,0.00011,2]
[340447191,1729261846369,-13480.3,0.00011,2]
[340447192,1729261846380,-6657.6305184,0.00011,2]
[340447193,1729261846392,-4036.29257775,0.00011,2]
[340447194,1729261846403,-77604.93663476,0.00011,2]
[340447195,1729261846419,-2674.57636298,0.00011,2]
[340447196,1729261846431,-377.0320002,0.00011,2]
[340447197,1729261846443,-1340.44999999,0.00011,2]
[340447198,1729261846455,-476.39767763,0.00011,2]
[340447199,1729261846469,-592.24144725,0.00011,2]
[340447200,1729261846487,-233278.58284245,0.00011,2]
[340447201,1729261854455,221.17,0.00021,30]
[340447202,1729261861632,221.17,0.00027,60]
[340447203,1729261868064,221.16,0.00027,60]
[340447204,1729261882790,221.16,0.00021,30]
[340447205,1729262025725,428.73802669,0.00027,60]
[340447207,1729262448963,490.79,9.486e-05,2]
[340447208,1729262526091,500.0,0.0002,30]
[340447209,1729262526217,800.0,0.00026986,120]
[340447210,1729262535529,515.98911617,0.00027,60]
[340447212,1729262645005,800.0,0.00026986,120]
[340447213,1729262704436,800.0,0.00026986,120]
[340447214,1729262832145,-487.723,0.0001078,2]
[340447215,1729262832165,-192.7,0.0001078,2]
[340447216,1729262832297,-150.0,0.0001078,2]
[340447217,1729262832328,-75.44499734,0.00010899,2]
[340447218,1729262842109,-74.55500266,0.00010899,2]
[340447219,1729262842130,-300.0,0.00010899,2]
[340447220,1729262842153,-1130.67766981,0.000109,2]
[340447221,1729262863458,500.0,0.00027,60]
[340447222,1729262944019,800.0,0.00026986,120]
[340447230,1729262996920,495.76,9.454e-05,2]
[340447241,1729263031969,-1641.4979,0.0001068,2]
[340447242,1729263031979,-150.0,0.00010899,2]
[340447245,1729263031989,-3814.0657,0.000109,2]
[340447247,1729263032001,-1133.60173019,0.000109,2]
[340447249,1729263032011,-893.23162464,0.000109,2]
[340447251,1729263032023,-2890.26297536,0.000109,2]
[340447252,1729263032032,-5741.49796475,0.000109,2]
[340447253,1729263032115,-373.64463525,0.000109,2]
[340447254,1729263032125,-642.38240794,0.000109,2]
[340447255,1729263032138,-357.61759206,0.000109,2]
[340447256,1729263032147,-150.0,0.00010932,2]
[340447257,1729263032157,-171.476858,0.00010958,2]
[340447258,1729263032167,-171.476858,0.00010958,2]
[340447259,1729263032176,-171.476858,0.00010958,2]
[340447260,1729263032186,-171.476858,0.00010958,2]
[340447261,1729263032195,-154.18,0.00010959,2]
[340447262,1729263032205,-180.34,0.00010959,2]
[340447263,1729263032215,-202.97887006,0.0001099,2]
[340447264,1729263032224,-500.0,0.00010999,2]
[340447265,1729263032234,-466.71206367,0.00010999,2]
[340447266,1729263032243,-10662.62630521,0.00011,2]
[340447267,1729263032255,-2417.64878082,0.00011,2]
[340447268,1729263032267,-4938.0734925,0.00011,2]
[340447269,1729263032278,-479.304,0.00011,2]
[340447270,1729263032294,-685.22772,0.00011,2]
[340447280,1729263038136,-8790.08758187,0.00011,2]
[340447281,1729263038174,-3425.9883,0.00011,2]
[340447282,1729263038302,-1368.88,0.00011,2]
[340447306,1729263039985,-2024.37733182,0.00011,2]
[340447307,1729263040130,-15782.01799011,0.00011,2]
[340447308,1729263040177,-34249.99999999,0.00011,2]
[340447309,1729263040225,-6756.00950947,0.00011,2]
[340447310,1729263040241,-6771.38509987,0.00011,2]
[340447311,1729263040262,-958.3150975,0.00011,2]
[340447312,1729263040278,-1281.64611028,0.00011,2]
[340447316,1729263043157,-3794.535277,0.00011,2]
[340447317,1729263043169,-315.0,0.00011,2]
[340447318,1729263043186,-6092.10664114,0.00011,2]
[340447319,1729263043355,-1364.52,0.00011,2]
[340447320,1729263043367,-507.1000005,0.00011,2]
[340447321,1729263043395,-138307.00081117,0.00011,2]
[340447331,1729263046084,-547.29678422,0.00011,2]
[340447332,1729263046231,-665.25543583,0.00011,2]
[340447333,1729263046243,-6829.39707348,0.00011,2]
[340447361,1729263293973,550.0,0.0001,2]
[340447362,1729263336280,-478.724,0.000108,2]
[340447363,1729263336302,-390.60507769,0.00010873,2]
[340447364,1729263336324,-555.8781,0.000109,2]
[340447365,1729263336346,-3095.0343,0.000109,2]
[340447366,1729263336368,-615.8192,0.000109,2]
[340447367,1729263336390,-954.3416,0.000109,2]
[340447368,1729263336411,-5579.8488,0.000109,2]
[340447369,1729263336432,-9562.76725,0.000109,2]
[340447370,1729263336454,-159821.2089,0.000109,2]
[340447371,1729263336476,-195.47382231,0.000109,2]
[340447372,1729263336498,-500.0,0.00010912,2]
[340447373,1729263336519,-500.0,0.00010973,2]
[340447374,1729263336541,-150.01,0.00010999,2]
[340447375,1729263336563,-1653.94600325,0.00010999,2]
[340447376,1729263336587,-500.0,0.00010999,2]
[340447377,1729263336611,-343.96865319,0.00010999,2]
[340447378,1729263336639,-1519068.47302683,0.00011,2]
[340447379,1729263336662,-973.51508996,0.00011,2]
[340447380,1729263336690,-3605848.24049675,0.00011,2]
[340447381,1729263336712,-1365332.09805458,0.00011,2]
[340447382,1729263336742,-1933902.18169622,0.00011,2]
[340447383,1729263336764,-3195290.45021629,0.00011,2]
[340447384,1729263336785,-200.0,0.00011,2]
[340447385,1729263336813,-2018187.10444077,0.00011,2]
[340447386,1729263336834,-151.0,0.00011,2]
[340447387,1729263336857,-151.0,0.00011,2]
[340447388,1729263336879,-151.0,0.00011,2]
[340447389,1729263336901,-151.761037,0.00011,2]
[340447390,1729263338130,500.0,0.00010873,2]
[340447391,1729263345691,826.97300163,0.00010999,2]
[340447392,1729263355270,413.48650081,0.00010999,2]
[340447393,1729263365181,206.74325041,0.00010999,2]
[340447394,1729263375417,206.7432504,0.00010999,2]
[340447395,1729263484338,492.81305,0.00027,60]
[340447396,1729263657710,583.71,9.186e-05,2]
[340447398,1729263988042,150.0,0.00027,60]
[340447399,1729264028113,-150.0,0.00010748,2]
[340447400,1729264028134,-150.0,0.00010818,2]
[340447401,1729264028156,-184.47438555,0.00010818,2]
[340447412,1729264189561,483.42224,0.00027,60]
[340447413,1729264198364,150.0,0.00027,120]
[340447414,1729264203300,483.42219,0.00027,60]
[340447415,1729264220374,483.42219,0.00027,60]
[340447416,1729264226033,584.0,0.00027,60]
[340447443,1729264232231,-457.382313,0.00010465,2]
[340447445,1729264232241,-554.52,0.00010517,2]
[340447447,1729264232252,-325.4722801,0.00010718,2]
[340447449,1729264232261,-150.0,0.00010818,2]
[340447451,1729264232270,-300.0,0.00010818,2]
[340447453,1729264232279,-1909.0,0.00010819,2]
[340447455,1729264232288,-3358.0,0.00010819,2]
[340447457,1729264232297,-809.0,0.00010819,2]
[340447459,1729264232307,-3319.96665,0.00010819,2]
[340447461,1729264232316,-1000.0,0.00010945,2]
[340447463,1729264232325,-1000.0,0.00010945,2]
[340447465,1729264232335,-1000.0,0.00010945,2]
[340447467,1729264232344,-1000.0,0.00010945,2]
[340447469,1729264232353,-1000.0,0.00010945,2]
[340447471,1729264232362,-1000.0,0.00010945,2]
[340447473,1729264232371,-300.8041,0.00010945,2]
[340447475,1729264232381,-150.07,0.00010959,2]
[340447476,1729264232390,-161.96,0.00010959,2]
[340447477,1729264232402,-5886.0,0.00010982,2]
[340447478,1729264232412,-13535.0,0.00010982,2]
[340447479,1729264232421,-1150.0,0.00010982,2]
[340447480,1729264232430,-159.346,0.00010982,2]
[340447481,1729264232440,-1500.0,0.00011,2]
[340447482,1729264232539,-20917.7956982,0.00011025,2]
[340447483,1729264232551,-3811.1956783,0.00011032,2]
[340447484,1729264232560,-5116.8789014,0.00011032,2]
[340447485,1729264232570,-237.1986547,0.0001104,2]
[340447486,1729264232579,-182.01157998,0.00011048,2]
[340447487,1729264232588,-12495.94736674,0.00011048,2]
[340447488,1729264232599,-13262.50062996,0.00011048,2]
[340447489,1729264232608,-499.99,0.00011048,2]
[340447490,1729264232617,-918.29213569,0.00011056,2]
[340447491,1729264232627,-918.29213569,0.00011056,2]
[340447492,1729264232636,-1500.0,0.00011102,2]
[340447493,1729264232645,-5230.5650726,0.00011148,2]
[340447494,1729264232654,-201.21,0.00011154,2]
[340447495,1729264232664,-4246.13,0.00011158,2]
[340447496,1729264232673,-298.74,0.00011173,2]
[340447497,1729264232682,-478.33,0.00011195,2]
[340447498,1729264232691,-5525.97380449,0.00011196,2]
[340447499,1729264232700,-196.45,0.00011317,2]
[340447500,1729264232709,-421.52524893,0.0001132,2]
[340447501,1729264232718,-164.1,0.00011445,2]
[340447502,1729264232727,-191.71,0.00011718,2]
[340447503,1729264232737,-200.0,0.00011728,2]
[340447504,1729264232747,-341.41,0.00011732,2]
[340447505,1729264232755,-298.74,0.00011732,2]
[340447506,1729264232765,-408.11,0.00011737,2]
[340447507,1729264232774,-2751.0,0.00011755,2]
[340447508,1729264232783,-250.0,0.00011801,2]
[340447509,1729264232792,-180.0,0.00011856,2]
[340447510,1729264232801,-420.0,0.0001189,2]
[340447511,1729264232810,-500.83,0.000119,2]
[340447512,1729264232819,-994.61,0.00011925,2]
[340447513,1729264232828,-600.0,0.00012,2]
[340447514,1729264232837,-3502.37345723,0.00012,10]
[340447515,1729264232845,-250.0,0.0001209,2]
[340447516,1729264232854,-1000.0,0.00012168,2]
[340447517,1729264232864,-869.73,0.00012207,2]
[340447518,1729264232873,-380.53,0.00012224,2]
[340447519,1729264232883,-180.22,0.00012266,2]
[340447520,1729264232892,-500.0,0.00012267,2]
[340447521,1729264232901,-298.74,0.00012291,2]
[340447522,1729264232910,-2644.2863,0.000123,2]
[340447523,1729264232919,-191.71,0.00012304,2]
[340447524,1729264232928,-151.585195,0.00012329,2]
[340447525,1729264232937,-151.0,0.00012329,2]
[340447526,1729264232946,-151.0,0.00012329,2]
[340447527,1729264232955,-151.0,0.00012329,2]
[340447528,1729264232965,-151.0,0.00012329,2]
[340447529,1729264232975,-151.0,0.00012329,2]
[340447530,1729264232985,-151.0,0.00012329,2]
[340447531,1729264232994,-151.0,0.00012329,2]
[340447532,1729264233003,-151.0,0.00012329,2]
[340447533,1729264233012,-151.0,0.00012329,2]
[340447534,1729264233022,-151.0,0.00012329,2]
[340447535,1729264233031,-448.8834,0.00012345,2]
[340447536,1729264233040,-211.286,0.000124,2]
[340447537,1729264233049,-249.812,0.000124,2]
[340447538,1729264233058,-812.0,0.000124,2]
[340447539,1729264233068,-1245.0,0.000124,2]
[340447540,1729264233077,-449.0,0.000124,2]
[340447541,1729264233086,-560.0,0.000124,2]
[340447542,1729264233095,-555.0,0.000124,2]
[340447543,1729264233104,-209.895,0.000124,2]
[340447544,1729264233113,-936.0,0.000124,2]
[340447545,1729264233123,-250.0,0.00012421,2]
[340447546,1729264233132,-216.13340108,0.00012429,2]
[340447547,1729264233142,-167.0,0.00012445,2]
[340447548,1729264233152,-167.0,0.00012445,2]
[340447549,1729264233161,-167.0,0.00012445,2]
[340447550,1729264233170,-26717.2883876,0.00012463,2]
[340447551,1729264233183,-405.77874343,0.00012463,2]
[340447552,1729264233194,-5614.93286897,0.00012463,2]
[340447553,1729264233204,-167.28,0.00012529,2]
[340447554,1729264233213,-478.33,0.00012594,2]
[340447555,1729264233223,-196.45,0.00012731,2]
[340447556,1729264233232,-554.52,0.00012781,2]
[340447557,1729264233241,-298.74,0.00012849,2]
[340447558,1729264233251,-191.71,0.0001289,2]
[340447559,1729264233260,-179.99,0.00012893,2]
[340447561,1729264233270,-151.13942504,0.00013,2]
[340447563,1729264233280,-587.0,0.00013068,2]
[340447565,1729264233289,-167.0,0.00013129,2]
[340447567,1729264233299,-453.54,0.0001313,2]
[340447569,1729264233308,-192.701,0.0001313,2]
[340447571,1729264233317,-214.78,0.00013333,2]
[340447573,1729264233326,-298.74,0.00013408,2]
[340447575,1729264233336,-191.71,0.00013475,2]